Cogmind - Beta 15 @@@ ROGUE MODE // 2025.08.12 @ 09:10:11 Player: Peregrine Result: Destroyed by D-53 Grenadier with Mini Grenade Launcher Performance ------------- Evolutions (0) 0 Regions Visited (2) 400 Robots Destroyed (6) 30 Value Destroyed (110) 110 Prototype IDs (0) 0 Alien Tech Used (0) 0 Bonus (0) 0 TOTAL SCORE: 540 Bonus ------- None Cogmind --------- Core Integrity 0/250 Matter 75/300 Energy 35/125 System Corruption 0% Temperature Cool (17) Movement Core (200) Ox3 Location -10/Mines Parts ------- > --- POWER (1) -------- Light Ion Engine > --- PROPULSION (2) --- (None) > --- UTILITY (2) ------ Small Storage Unit Signal Interpreter > --- WEAPON (2) ------- Medium Laser Medium Laser > --- INVENTORY (8) ---- Wheel Wheel Structural Scanner EM Pulse Gun Assault Rifle Grenade Launcher Peak State ------------ > --- POWER ------------ Light Ion Engine > --- PROPULSION ------- Aluminum Leg Aluminum Leg > --- UTILITY ---------- Small Storage Unit Signal Interpreter > --- WEAPON ----------- EM Pulse Gun Grenade Launcher > --- INVENTORY -------- Light Ion Engine Wheel Wheel Medium Laser Medium Laser [Rating: 7] Favorites ----------- Power Light Ion Engine Engine Light Ion Engine Propulsion Aluminum Leg Leg Aluminum Leg Utility Small Storage Unit Storage Small Storage Unit Processor Signal Interpreter Weapon Grenade Launcher Energy Gun EM Pulse Gun Launcher Grenade Launcher Build | -11 -10 -10 ------- Run | Yrd Mat Min Slots Evolved . | . . . Power . | . . . Propulsion . | . . . Utility . | . . . Weapon . | . . . Parts Attached 6 | . 2 4 Power 1 | . . 1 Engine 1 | . . 1 Core . | . . . Reactor . | . . . Propulsion . | . . . Treads . | . . . Leg . | . . . Wheel . | . . . Hover . | . . . Flight . | . . . Utility 1 | . 1 . Device . | . . . Storage . | . . . Processor 1 | . 1 . Hackware . | . . . Protection . | . . . Artifact . | . . . Weapon 4 | . 1 3 Energy Gun 2 | . . 2 Energy Cannon . | . . . Ballistic Gun . | . . . Ballistic Cannon . | . . . Launcher 2 | . 1 1 Special Weapon . | . . . Impact Weapon . | . . . Slashing Weapon . | . . . Piercing Weapon . | . . . Special Melee Weapon . | . . . Unidentified Prototypes . | . . . Parts Lost 4 | . . 4 Power 1 | . . 1 Propulsion 2 | . . 2 Utility . | . . . Weapon 1 | . . 1 Highest Loss Streak 2 | . . 2 To Critical Strikes . | . . . Average Backups 6 | . 5 8 Power 1 | . 1 1 Propulsion 2 | . 2 2 Utility . | . . 1 Weapon 2 | . 2 4 Tool/Special . | . . . Unused Backups 1 | . . 1 Power . | . . . Propulsion . | . . . Utility . | . . . Weapon 1 | . . 1 Tool/Special . | . . . Average Slot Usage (%) 87 | . 89 84 Engine 11 | . 14 7 Leg 28 | . 28 28 Storage 14 | . 14 14 Processor 7 | . 4 14 Energy Gun 15 | . 22 2 Launcher 9 | . 5 17 Peak Build Rating 7 | . 7 7 Average Rating 6 | . 6 5 On Entrance 6 | 6 6 7 Naked Turns . | . . . Heaviest Build 14 | 12 13 14 Greatest Support 20 | 20 20 20 Greatest Overweight (x) . | . . . Average Overweight (x) . | . . . Largest Inventory Capacity 8 | . 8 8 Average Capacity 8 | . 8 8 Most Carried 8 | . 8 8 Average Carried 6 | . 5 7 Final Capacity 8 | 8 8 8 Final Carried 8 | 6 8 6 Class Distribution -------------------- 100% | Mutant Dominant Class ---------------- Mutant | -10/Materials Mutant | -10/Mines Resources | -11 -10 -10 ----------- Run | Yrd Mat Min Matter Collected 305 | 200 74 31 Remotely . | . . . Salvage Created 141 | . 127 14 Parts 6 | . 6 . Haulers Intercepted . | . . . Recyclers Shooed . | . . . Parts Field Recycled . | . . . Retrieved Matter . | . . . Parts Self-Destructed . | . . . Prevented . | . . . Kills | -11 -10 -10 ------- Run | Yrd Mat Min Combat Hostiles Destroyed 20 | . 2 18 AOE 20 | . 2 18 Classes Destroyed 6 | . 5 1 Worker 1 | . 1 . Builder 1 | . 1 . Tunneler 1 | . 1 . Recycler 1 | . 1 . Grunt 2 | . 2 . Assembled 18 | . . 18 Best Kill Streak 17 | . 5 17 Combat Bots Only 17 | . 2 17 Max Kills in Single Turn 4 | . 3 4 Gunslinging . | . . . Exploded 4 | . 1 4 Melee . | . . . Uniques/NPCs Destroyed . | . . . Combat | -11 -10 -10 -------- Run | Yrd Mat Min Hostile Shots Fired 36 | . 7 29 Missed 9 | . 4 5 Hits 27 | . 3 24 Melee 1 | . . 1 Projectile 26 | . 3 23 AOE 9 | . . 9 Critical Strikes 1 | . . 1 Damage Taken 732 | . 94 638 Core 255 | . 24 231 Absorbed by Shields . | . . . Core Remaining (%) 100 | 100 . . Volleys Fired 25 | . 8 17 Largest 2 | . 1 2 Hottest 100 | . 30 100 Shots Fired 33 | . 8 25 Gun 4 | . . 4 Cannon . | . . . Launcher 29 | . 8 21 Special . | . . . Kinetic . | . . . Thermal 4 | . . 4 Explosive 29 | . 8 21 Electromagnetic . | . . . Robot Hit Streak 4 | . 4 4 Robot Miss Streak 3 | . 2 3 Penetration Max . | . . . Secondary Targets . | . . . Shots Hit Robots 14 | . 4 10 Core Hits 60 | . 10 50 Critical Kills . | . . . Critical Parts Destroyed . | . . . Critical Strikes . | . . . Melee Attacks . | . . . Impact . | . . . Slashing . | . . . Piercing . | . . . Sneak Attacks . | . . . Combat Hostiles . | . . . Follow-up Attacks . | . . . Damage Inflicted 1619 | . 400 1219 Guns 50 | . . 50 Cannons . | . . . Explosions 1569 | . 400 1169 Melee . | . . . Ramming . | . . . Kinetic . | . . . Thermal 50 | . . 50 Explosive 1569 | . 400 1169 Electromagnetic . | . . . Impact . | . . . Slashing . | . . . Piercing . | . . . Highest Corruption . | . . . Average Corruption . | . . . Corruption Purged . | . . . Corruption Blocked . | . . . Overload Shots . | . . . Overflow Damage 24 | . . 24 Projectiles . | . . . Explosions 24 | . . 24 Melee . | . . . Knockbacks . | . . . Impact . | . . . Kinetic . | . . . Secondary . | . . . Self-Inflicted Damage 215 | . 51 164 Shots 7 | . 2 5 Rammed . | . . . Targets Rammed . | . . . Kicked . | . . . Crushed . | . . . Highest Temperature 24 | . 4 24 Average Temperature 10 | . 4 13 Received Heat Transfer 67 | . 27 40 Siege Activations . | . . . Martial Activations . | . . . Shielding Activations . | . . . Robots Disrupted . | . . . Combat Hostiles . | . . . Robots Corrupted . | . . . Combat Hostiles . | . . . Parts Fried . | . . . Impact Corruptions . | . . . Robots Melted . | . . . Combat Hostiles . | . . . Parts Melted . | . . . Heat Transferred 148 | . . 148 Parts Sabotaged . | . . . Parts Stolen . | . . . Parts Stripped . | . . . Power Chain Reactions . | . . . Alert | -11 -10 -10 ------- Run | Yrd Mat Min Maximum Alert Level . | . . . Low Security (%) 100 | . 100 100 Level 1 . | . . . Level 2 . | . . . Level 3 . | . . . Level 4 . | . . . Level 5 . | . . . High Security . | . . . Max Security . | . . . Peak Influence 97 | . 97 47 Initial 28 | . . 28 Average 26 | . 28 24 Influence Increases 179 | . 124 55 Destroy 0b10 Robot/C 40 | . 40 . Destroy 0b10 Robot/NC 20 | . 20 . Destroy Leader 10 | . 10 . Disable Machine 15 | . 15 . Destroy Structure 94 | . 39 55 Influence Decreases 179 | . 50 129 Entered New Map 46 | . . 46 Time Decay 100 | . 50 50 Lost Part 33 | . . 33 Squads Dispatched . | . . . Investigation . | . . . Extermination . | . . . Reinforcement . | . . . Assault . | . . . Garrison . | . . . Intercept . | . . . Searches Triggered . | . . . Construction Impeded . | . . . Haulers Reinforced . | . . . Active Scanning Responses . | . . . Cargo Convoy Interrupts . | . . . Stealth | -11 -10 -10 --------- Run | Yrd Mat Min Distress Signals 1 | . . 1 Communications Jammed . | . . . Distress Signals . | . . . Times Spotted 23 | . 3 20 Peak Tracking Total 14 | . 2 14 Tactical Retreats 1 | . . 1 Traps | -11 -10 -10 ------- Run | Yrd Mat Min Traps Triggered . | . . . Indirectly . | . . . Trap Hack Attempts . | . . . Triggered . | . . . Disarmed . | . . . Reprogrammed . | . . . Reused . | . . . Traps Extracted . | . . . Installed . | . . . Triggered . | . . . Machines | -11 -10 -10 ---------- Run | Yrd Mat Min Machines Disabled 1 | . 1 . Max in Single Turn 1 | . 1 . Machines Repaired . | . . . Machines Dismantled . | . . . Machines Sabotaged . | . . . Overloaded Fab Kills . | . . . Hacking | -11 -10 -10 --------- Run | Yrd Mat Min Machines Accessed . | . . . Terminals . | . . . Fabricators . | . . . Repair Stations . | . . . Recycling Units . | . . . Scanalyzers . | . . . Garrison Access . | . . . Total Hacks . | . . . Successful . | . . . Failed . | . . . Catastrophic . | . . . Database Lockouts . | . . . Manual . | . . . Terminals . | . . . Fabricators . | . . . Repair Stations . | . . . Recycling Units . | . . . Scanalyzers . | . . . Garrison Access . | . . . Terminal Hacks . | . . . Fabricator Hacks . | . . . Repair Station Hacks . | . . . Recycling Unit Hacks . | . . . Scanalyzer . | . . . Garrison Access Hacks . | . . . Unauthorized Hacks . | . . . Terminals . | . . . Fabricators . | . . . Repair Stations . | . . . Recycling Units . | . . . Scanalyzers . | . . . Garrison Access . | . . . Data Cores Recovered . | . . . Used . | . . . Hacking Detections . | . . . Full Trace Events . | . . . Feedback Events . | . . . Feedback Blocked . | . . . Robot Schematics Acquired . | . . . Robots Built . | . . . Authchips . | . . . Time . | . . . Total Robot Build Rating . | . . . Part Schematics Acquired . | . . . Parts Built . | . . . Authchips . | . . . Time . | . . . Total Part Build Rating . | . . . Parts Repaired . | . . . Time . | . . . Parts Recycled . | . . . Recycled Matter . | . . . Retrieved Matter . | . . . Retrieved Components . | . . . Parts Scanalyzed . | . . . Part Schematics Acquired . | . . . Parts Damaged . | . . . Bothacking | -11 -10 -10 ------------ Run | Yrd Mat Min Used RIF Installer . | . . . Robots Hacked . | . . . Non-combat . | . . . Combat . | . . . Robot Hacks Applied . | . . . Relay Couplers Released . | . . . Fabnet Peak Effective % . | . . . Robots Rewired . | . . . Allies Hacked . | . . . Hacks Repelled . | . . . Allies | -11 -10 -10 -------- Run | Yrd Mat Min Total Allies . | . . . Largest Group . | . . . Highest-Rated Group . | . . . Highest-Rated Ally . | . . . Total Orders . | . . . Ally Attacks . | . . . Total Damage . | . . . Kills . | . . . Allies Corrupted . | . . . Allies Melted . | . . . Intel | -11 -10 -10 ------- Run | Yrd Mat Min Active Infowar (turns) . | . . . Robot Analysis Total . | . . . Derelict Logs Recovered . | . . . Drone Launches . | . . . Drone Recoveries . | . . . Exploration | -11 -10 -10 ------------- Run | Yrd Mat Min Turns Passed 338 | . 222 116 Spaces Moved 224 | 1 165 58 Core . | . . . Treads . | . . . Legs 224 | 1 165 58 Wheels . | . . . Hover . | . . . Flight . | . . . Fastest Speed 120 | 120 120 120 Average Speed 120 | 120 120 120 Slowest Speed 120 | 120 120 120 Overloaded Moves . | . . . Propulsion Burnouts . | . . . Robots Hopped . | . . . Potential Cave-ins . | . . . Cave-ins Triggered . | . . . Exploration Rate (%) 15 | 2 26 18 Regions Visited 2 Branch Regions 1 Pre-discovered Areas . | . . . Known Exits Taken 1 | . 1 . Unknown Exits Taken 1 | 1 . . Scrap Searched 1 | . . 1 Spaces Dug . | . . . Terrain Destroyed 169 | . 47 122 Melee . | . . . Projectile . | . . . AOE 169 | . 47 122 Terrain Rammed . | . . . Walls Destroyed . | . . . Machines Disabled . | . . . Actions | -11 -10 -10 --------- Run | Yrd Mat Min Total 262 | . 181 81 Wait . | . . . Move 222 | . 164 58 Hop . | . . . Pick Up 5 | . 5 . Fast Attach 1 | . . 1 Attach 3 | . 1 2 Detach 1 | . . 1 Swap 2 | . 1 1 Drop 3 | . 2 1 Fire 25 | . 8 17 Melee . | . . . Ram . | . . . Kick . | . . . Crush . | . . . Escape Stasis . | . . . Rewire . | . . . Trap . | . . . Miscellaneous . | . . . Route ------- -11/Scrapyard -10/Materials -10/Mines History --------- Turn | Location | Event 1 | -11/Scrapyard | Discovered new exit (range 0) 1 | -11/Scrapyard | Entered Materials 183 | -10/Materials | Discovered new exit (range 14) 220 | -10/Materials | Identified exit to Mines 223 | -10/Materials | Entered Mines 224 | -10/Mines | Assembled infested the area 279 | -10/Mines | Core integrity fell below 50% 301 | -10/Mines | Destroyed 17 combat bots 311 | -10/Mines | Build established: Mutant 336 | -10/Mines | Core integrity fell below 20% 339 | -10/Mines | Destroyed by D-53 Grenadier with Mini Grenade Launcher Last Messages --------------- 00270_ as-44030 destroyed. 00272_ Lgt. Ion Engine destroyed. 00272_ Destroyed Lgt. Ion Engine. 00274_ as-11916 destroyed. 00274_ as-05682 destroyed. 00274_ as-44326 destroyed. 00275_ The unstable cave ceiling collapses. 00276_ Destroyed Asb. Hover Unit. 00278_ as-93831 destroyed. 00278_ Destroyed Asb. F-torch. 00280_ as-42237 destroyed. 00283_ The unstable cave ceiling collapses. 00289_ Acquired 3 matter. 00291_ The unstable cave ceiling collapses. 00314_ as-42582 destroyed. 00316_ Acquired 2 matter. 00322_ The unstable cave ceiling collapses. 00333_ Aluminum Leg destroyed. 00334_ The unstable cave ceiling collapses. 00339_ Aluminum Leg destroyed. Map ----- +----------------------------------------------------+ | ????????????????????????????????????????# #???? | | ????????????????????????????????????????# #???? | | ????????????????????????????????????????# ###?? | | ????????????????????????????????????????## #?? | | ???????????????????????? ?????????????# ##? | | ???????????????????????# ???????????## #? | | ???????????????????????? ???????????# ### | | ???????????????????????## ??????????## # | | ???????????????????????# ###???????# # #? | | ???????????????????????? #??????## ## | | ????????????????????????# #??????# # # | | ????????????????????????# % ##?????## # ## | | ????????????????????????? #????## # #? | | ??????????????????????????# ????# # #? | | ??????????????????????????## ####?# #? | | ?????????????????????????## #### #? | | ?????????????????????????# dd #?# # #? | | ?????????????????????????# ##### #? | | ?????????????????????????# #?## #? | | ????????????????????????## # #?# ##? | | ??????????????????????### # ##?### " ###?? | | ?????????????????????## ## ##????# ##?? | | ????????????????????## ## ####### #?? | | ????????????????????# ## #?? | | ????????????????????## ## #?? | | ????????????????????# @ ############# ##?? | | ????????????????????# #????????????###??? | | ????????????????????## #?????????????????? | | ?????????????????????# ##?????????????????? | | ?????????????????????# ##??????????????????? | | ?????????????????????## ##???????????????????? | | ??????????????????????## ##????????????????????? | | ???????????????????????####?????????????????????? | | ????????????????????????????????????????????????? | | ????????????????????????????????????????????????? | | ????????????????????????????????????????????????? | | ????????????????????????????????????????????????? | | ????????????????????????????????????????????????? | | ????????????????????????????????????????????????? | | ????????????????????????????????????????????????? | | ????????????????????????????????????????????????? | | ????????????????????????????????????????????????? | | ????????????????????????????????????????????????? | | ????????????????????????????????????????????????? | | ????????????????????????????????????????????????? | | ????????????????????????????????????????????????? | | ????????????????????????????????????????????????? | | ????????????????????????????????????????????????? | | ????????????????????????????????????????????????? | | ????????????????????????????????????????????????? | +----------------------------------------------------+ Best States ------------- Heat Dissipation 25 Energy Generation 10 Energy Capacity 125 Matter Stores 300 Matter Capacity 300 Sight Range 16 Terrain Scan Density 10 Evasion (%) 55 Item Schematics ----------------- None Robot Schematics ------------------ None Fabricated ------------ Nothing Repaired ---------- Nothing Alien Tech Used ----------------- None Achievements -------------- None Challenges ------------ None Game ------ Seed GunMakeshiftMagmablaster Manual? 0 Play Time 00:05:04 Cumulative 122.7 hours Start 2025.08.12 @ 09:06:52 End 2025.08.12 @ 09:10:11 Sessions 1 Manual Loads 0 Difficulty Rogue Special Mode None Game No. 150 Rogue 135 Adventurer 15 Explorer 0 Win Type - Total 4 Types 3/0/1/0/0/0/0/0/0/0 Lore% 39 Gallery% 61 Achievement% 57 Wizard Run 0 Options --------- Layout 0 ASCII 0 Keyboard 0 Movement Mouse Keybinds 0 Fullscreen 2 Font 36/Smallcaps Map View 76x50 Zoom Use 0% Tactical HUD 1 Map Filters NONE Filters NONE Steam 1 RUN: c4fe7414-e886-413f-9fd6-2cf8878136a7